fUSD/lending_fUSD_20250814
["ID","MTS","AMOUNT","RATE_DAILY","PERIOD"]
[379130873,1755151996316,-400.0,0.00058904,120]
[379130874,1755151996326,-461.99109949,0.00058904,120]
[379130875,1755151996335,-518.91,0.00058904,120]
[379130876,1755151996345,-537.81,0.00058904,120]
[379130877,1755151996355,-398.0,0.00058904,120]
[379130878,1755151996366,-1231.11,0.00058904,120]
[379130879,1755151996375,-400.0,0.00058904,120]
[379130880,1755151996386,-400.0,0.00058904,120]
[379130881,1755151996396,-417.32,0.00058904,120]
[379130882,1755151996406,-400.0,0.00058904,120]
[379130883,1755151996415,-1207.1,0.00058904,120]
[379130884,1755151996426,-400.0,0.00058904,120]
[379130885,1755151996439,-417.19,0.00058904,120]
[379130886,1755151996448,-296.23417844,0.00058904,120]
[379130887,1755151996459,-931.84,0.00058904,120]
[379130888,1755151996469,-400.0,0.00058904,120]
[379130889,1755151996479,-400.0,0.00058904,120]
[379130890,1755151996488,-400.0,0.00058904,120]
[379130891,1755151996499,-400.0,0.00058904,120]
[379130892,1755151996508,-1319.73,0.00058904,120]
[379130893,1755151996518,-400.0,0.00058904,120]
[379130894,1755151996528,-2169.82,0.00058904,120]
[379130895,1755151996538,-400.0,0.00058904,120]
[379130896,1755151996548,-400.0,0.00058904,120]
[379130897,1755151996559,-400.0,0.00058904,120]
[379130898,1755151996568,-843.53,0.00058904,120]
[379130899,1755151996578,-239.79102739,0.00058904,120]
[379130900,1755151996587,-400.0,0.00058904,120]
[379130901,1755151996596,-507.06,0.00058904,120]
[379130902,1755151996610,-400.0,0.00058904,120]
[379130903,1755151996627,-1647.52,0.00058904,120]
[379130904,1755151996636,-1255.35,0.00058904,120]
[379130905,1755151996647,-435.47,0.00058904,120]
[379130906,1755151996656,-400.0,0.00058904,120]
[379130907,1755151996666,-2343.63,0.00058904,120]
[379130908,1755151996675,-400.0,0.00058904,120]
[379130909,1755151996687,-1336.7,0.00058904,120]
[379130910,1755151996697,-1524.01,0.00058904,120]
[379130911,1755151996707,-400.0,0.00058904,120]
[379130912,1755151996717,-400.0,0.00058904,120]
[379130913,1755151996727,-1100.6,0.00058904,120]
[379130914,1755151996736,-400.0,0.00058904,120]
[379130915,1755151996746,-536.21,0.00058904,120]
[379130916,1755151996756,-591.66,0.00058904,120]
[379130917,1755151996766,-400.0,0.00058904,120]
[379130918,1755151996776,-400.0,0.00058904,120]
[379130919,1755151996786,-400.0,0.00058904,120]
[379130920,1755151996795,-474.14225066,0.00058904,120]
[379130921,1755151996805,-1196.29,0.00058904,120]
[379130922,1755151996815,-680.02,0.00058904,120]
[379130923,1755151996826,-511.48,0.00058904,120]
[379130924,1755151996835,-1028.17,0.00058904,120]
[379130925,1755151996844,-2359.32,0.00058904,120]
[379130926,1755151996854,-450.14,0.00058904,120]
[379130927,1755151996863,-512.79,0.00058904,120]
[379130928,1755151996874,-880.18,0.00058904,120]
[379130929,1755151996886,-411.91,0.00058904,120]
[379130930,1755151996896,-400.0,0.00058904,120]
[379130931,1755151996906,-400.0,0.00058904,120]
[379130932,1755151996915,-2065.78,0.00058904,120]
[379130933,1755151996924,-2269.12,0.00058904,120]
[379130934,1755151996936,-430.86,0.00058904,120]
[379130935,1755151996946,-3933.34,0.00058904,120]
[379130936,1755151996957,-400.0,0.00058904,120]
[379130937,1755151996969,-400.0,0.00058904,120]
[379130938,1755151996979,-567.22,0.00058904,2]
[379130939,1755151996989,-3388.22,0.00058904,120]
[379130940,1755151996998,-205.94027905,0.00058904,120]
[379130941,1755151997009,-706.75,0.00058904,120]
[379130942,1755151997019,-806.62,0.00058904,120]
[379130943,1755151997030,-3022.65,0.00058904,120]
[379130944,1755151997040,-1072.62,0.00058904,120]
[379130945,1755151997049,-400.0,0.00058904,120]
[379130946,1755151997059,-474.98,0.00058904,120]
[379130947,1755151997068,-400.0,0.00058904,120]
[379130948,1755151997079,-400.0,0.00058904,120]
[379130949,1755151997088,-400.0,0.00058904,120]
[379130950,1755151997098,-400.0,0.00058904,120]
[379130951,1755151997108,-400.0,0.00058904,120]
[379130952,1755151997118,-400.0,0.00058904,120]
[379130953,1755151997128,-400.0,0.00058904,120]
[379130954,1755151997138,-319.4551098,0.00058904,120]
[379130955,1755151997147,-400.0,0.00058904,2]
[379130956,1755151997157,-2669.21,0.00058904,120]
[379130957,1755151997167,-400.3,0.00058904,120]
[379130958,1755151997176,-400.0,0.00058904,120]
[379130959,1755151997189,-1124.34,0.00058904,120]
[379130960,1755151997198,-400.0,0.00058904,120]
[379130961,1755151997208,-400.0,0.00058904,120]
[379130962,1755151997217,-400.0,0.00058904,120]
[379130963,1755151997227,-1646.35,0.00058904,120]
[379130964,1755151997236,-400.0,0.00058904,30]
[379130965,1755151997246,-986.63,0.00058904,120]
[379130966,1755151997256,-574.51,0.00058904,120]
[379130967,1755151997266,-1010.52,0.00058904,120]
[379130968,1755151997276,-3068.68,0.00058904,120]
[379130969,1755151997286,-400.0,0.00058904,120]
[379130970,1755151997295,-1157.99,0.00058904,120]
[379130971,1755151997304,-1280.68,0.00058904,120]
[379130972,1755151997314,-631.96,0.00058904,120]
[379130973,1755151997323,-400.0,0.00058904,120]
[379130974,1755151997334,-442.43,0.00058904,120]
[379130975,1755151997344,-1231.47,0.00058904,120]
[379130976,1755151997354,-2509.4,0.00058904,120]
[379130977,1755151997364,-930.15,0.00058904,120]
[379130978,1755151997375,-400.0,0.00058904,120]
[379130979,1755151997385,-474.55,0.00058904,120]
[379130980,1755151997394,-302.57386442,0.00058904,120]
[379130981,1755151997404,-400.0,0.00058904,120]
[379130982,1755151997414,-542.34,0.00058904,120]
[379130983,1755151997424,-404.91064211,0.00058904,120]
[379130984,1755151997437,-4323.94,0.00058904,120]
[379130985,1755151997448,-1001.49,0.00058904,120]
[379130986,1755151997458,-400.0,0.00058904,120]
[379130987,1755151997467,-1026.06,0.00058904,120]
[379130988,1755151997478,-2393.33,0.00058904,120]
[379130989,1755151997488,-774.99,0.00058904,120]
[379130990,1755151997499,-4246.54,0.00058904,120]
[379130991,1755151997508,-400.0,0.00058904,120]
[379130992,1755151997518,-2333.02,0.00058904,120]
[379130993,1755151997527,-522.19,0.00058904,120]
[379130994,1755151997537,-400.0,0.00058904,120]
[379130995,1755151997547,-524.14,0.00058904,120]
[379130996,1755151997556,-481.66,0.00058904,120]
[379130997,1755151997566,-400.0,0.00058904,120]
[379130998,1755151997576,-400.0,0.00058904,120]
[379130999,1755151997586,-3378.52,0.00058904,120]
[379131000,1755151997596,-1270.22,0.00058904,120]
[379131001,1755151997606,-400.0,0.00058904,120]
[379131002,1755151997616,-471.19,0.00058904,120]
[379131003,1755151997625,-596.35,0.00058904,120]
[379131004,1755151997635,-400.0,0.00058904,120]
[379131005,1755151997644,-400.0,0.00058904,120]
[379131006,1755151997654,-2137.2,0.00058904,120]
[379131007,1755151997663,-784.0,0.00058904,120]
[379131008,1755151997673,-400.0,0.00058904,120]
[379131009,1755151997684,-1201.9,0.00058904,120]
[379131010,1755151997694,-4803.22,0.00058904,120]
[379131011,1755151997704,-400.0,0.00058904,120]
[379131012,1755151997714,-2422.17,0.00058904,120]
[379131013,1755151997724,-400.0,0.00058904,120]
[379131014,1755151997733,-400.0,0.00058904,120]
[379131015,1755151997743,-806.69,0.00058904,120]
[379131016,1755151997753,-415.24,0.00058904,2]
[379131017,1755151997763,-756.82,0.00058904,120]
[379131018,1755151997773,-776.05,0.00058904,120]
[379131019,1755151997783,-400.0,0.00058904,120]
[379131020,1755151997792,-737.75,0.00058904,120]
[379131021,1755151997803,-1099.84,0.00058904,120]
[379131022,1755151997812,-2190.42,0.00058904,120]
[379131023,1755151997822,-443.25,0.00058904,120]
[379131024,1755151997832,-452.45,0.00058904,120]
[379131025,1755151997841,-400.0,0.00058904,120]
[379131026,1755151997851,-1674.15,0.00058904,120]
[379131027,1755151997860,-3816.16,0.00058904,120]
[379131028,1755151997870,-2600.42,0.00058904,120]
[379131029,1755151997883,-1324.56,0.00058904,120]
[379131030,1755151997892,-500.0,0.00058904,120]
[379131031,1755151997901,-400.0,0.00058904,120]
[379131032,1755151997911,-3126.37,0.00058904,120]
[379131033,1755151997921,-192.80460537,0.00058904,120]
[379131034,1755151997932,-4802.33,0.00058904,120]
[379131035,1755151997942,-738.08,0.00058904,120]
[379131036,1755151997953,-532.53,0.00058904,120]
[379131037,1755151997965,-400.0,0.00058904,120]
[379131038,1755151997975,-400.0,0.00058904,120]
[379131039,1755151997985,-1432.3,0.00058904,120]
[379131040,1755151997994,-451.43,0.00058904,120]
[379131041,1755151998005,-1799.4,0.00058904,120]
[379131042,1755151998016,-3657.22,0.00058904,120]
[379131043,1755151998026,-3965.56,0.00058904,120]
[379131044,1755151998036,-4912.44,0.00058904,120]
[379131045,1755151998046,-863.57,0.00058904,120]
[379131046,1755151998056,-865.8,0.00058904,120]
[379131047,1755151998066,-400.0,0.00058904,120]
[379131048,1755151998075,-2237.49,0.00058904,120]
[379131049,1755151998085,-400.0,0.00058904,120]
[379131050,1755151998094,-400.0,0.00058904,120]
[379131051,1755151998103,-1326.15,0.00058904,120]
[379131052,1755151998114,-1845.1,0.00058904,120]
[379131053,1755151998123,-1272.25,0.00058904,120]
[379131054,1755151998133,-2005.83,0.00058904,120]
[379131055,1755151998143,-400.0,0.00058904,120]
[379131056,1755151998152,-972.75,0.00058904,120]
[379131057,1755151998162,-2900.54,0.00058904,120]
[379131058,1755151998172,-400.0,0.00058904,120]
[379131059,1755151998182,-1144.13,0.00058904,120]
[379131060,1755151998192,-2172.78,0.00058904,120]
[379131061,1755151998202,-2076.9,0.00058904,120]
[379131062,1755151998212,-400.0,0.00058904,120]
[379131063,1755151998221,-400.0,0.00058904,120]
[379131064,1755151998231,-2988.88,0.00058904,120]
[379131065,1755151998240,-400.0,0.00058904,120]
[379131066,1755151998250,-404.44,0.00058904,120]
[379131067,1755151998259,-500.2,0.00058904,120]
[379131068,1755151998269,-569.34,0.00058904,120]
[379131069,1755151998279,-2059.24,0.00058904,120]
[379131070,1755151998289,-400.0,0.00058904,120]
[379131071,1755151998299,-2090.14,0.00058904,120]
[379131072,1755151998309,-756.39,0.00058904,120]
[379131073,1755151998319,-400.0,0.00058904,120]
[379131074,1755151998329,-3724.14,0.00058904,120]
[379131075,1755151998339,-400.0,0.00058904,120]
[379131076,1755151998349,-1288.69,0.00058904,120]
[379131077,1755151998358,-433.35,0.00058904,120]
[379131078,1755151998368,-2677.37,0.00058904,120]
[379131079,1755151998378,-642.07,0.00058904,120]
[379131080,1755151998388,-2430.89,0.00058904,120]
[379131081,1755151998397,-400.0,0.00058904,120]
[379131082,1755151998407,-2452.24,0.00058904,120]
[379131083,1755151998417,-455.81,0.00058904,120]
[379131084,1755151998427,-5534.33,0.00058904,120]
[379131085,1755151998440,-726.09,0.00058904,120]
[379131086,1755151998450,-439.2,0.00058904,120]
[379131087,1755151998460,-2660.6,0.00058904,120]
[379131088,1755151998471,-1671.75,0.00058904,120]
[379131089,1755151998480,-400.0,0.00058904,120]
[379131090,1755151998490,-1395.59,0.00058904,120]
[379131091,1755151998500,-3020.26,0.00058904,120]
[379131092,1755151998512,-166.97073314,0.00058904,120]
[379131093,1755151998527,-400.0,0.00058904,120]
[379131094,1755151998538,-400.0,0.00058904,120]
[379131095,1755151998547,-400.0,0.00058904,120]
[379131096,1755151998557,-400.0,0.00058904,120]
[379131097,1755151998567,-720.26,0.00058904,120]
[379131098,1755151998576,-400.0,0.00058904,120]
[379131099,1755151998587,-1133.0,0.00058904,60]
[379131100,1755151998596,-5312.63,0.00058904,120]
[379131101,1755151998606,-680.09,0.00058904,120]
[379131102,1755151998615,-3020.77,0.00058904,120]
[379131103,1755151998625,-400.0,0.00058904,120]
[379131104,1755151998635,-4215.1,0.00058904,120]
[379131105,1755151998644,-1052.61,0.00058904,120]
[379131106,1755151998654,-703.6,0.00058904,120]
[379131107,1755151998663,-400.0,0.00058904,120]
[379131108,1755151998673,-400.0,0.00058904,120]
[379131109,1755151998685,-400.0,0.00058904,120]
[379131110,1755151998694,-400.0,0.00058904,120]
[379131111,1755151998703,-433.78,0.00058904,120]
[379131112,1755151998711,-627.09,0.00058904,120]
[379131113,1755151998721,-3691.93,0.00058904,120]
[379131114,1755151998731,-722.15,0.00058904,120]
[379131115,1755151998741,-400.0,0.00058904,120]
[379131116,1755151998750,-576.65,0.00058904,120]
[379131117,1755151998760,-443.52,0.00058904,120]
[379131118,1755151998769,-3887.95,0.00058904,120]
[379131119,1755151998779,-1655.04,0.00058904,120]
[379131120,1755151998788,-1229.44,0.00058904,120]
[379131121,1755151998798,-404.67040352,0.00058904,120]
[379131122,1755151998807,-400.0,0.00058904,120]
[379131123,1755151998817,-831.55,0.00058904,120]
[379131124,1755151998827,-1044.57,0.00058904,120]
[379131125,1755151998837,-400.0,0.00058904,120]
[379131126,1755151998846,-937.86,0.00058904,120]
[379131127,1755151998856,-400.0,0.00058904,120]
[379131128,1755151998866,-400.0,0.00058904,120]
[379131129,1755151998875,-400.0,0.00058904,120]
[379131130,1755151998885,-465.01,0.00058904,120]
[379131131,1755151998895,-400.0,0.00058904,120]
[379131132,1755151998904,-430.45,0.00058904,120]
[379131133,1755151998914,-400.0,0.00058904,120]
[379131134,1755151998924,-1145.39,0.00058904,120]
[379131135,1755151998934,-400.0,0.00058904,120]
[379131136,1755151998944,-400.0,0.00058904,120]
[379131137,1755151998955,-400.0,0.00058904,120]
[379131138,1755151998967,-727.77,0.00058904,120]
[379131139,1755151998979,-741.62,0.00058904,120]
[379131140,1755151998989,-721.15,0.00058904,120]
[379131141,1755151999000,-819.26,0.00058904,120]
[379131142,1755151999011,-3128.9,0.00058904,120]
[379131143,1755151999020,-3068.16,0.00058904,120]
[379131144,1755151999030,-250.0,0.00058904,120]
[379131145,1755151999041,-400.0,0.00058904,120]
[379131146,1755151999051,-400.0,0.00058904,120]
[379131147,1755151999060,-400.0,0.00058904,120]
[379131148,1755151999070,-400.0,0.00058904,120]
[379131149,1755151999080,-809.93,0.00058904,120]
[379131150,1755151999090,-352.73,0.00058904,120]
[379131151,1755151999100,-611.84,0.00058904,120]
[379131152,1755151999110,-1496.83,0.00058904,15]
[379131153,1755151999120,-952.2,0.00058904,120]
[379131154,1755151999129,-1451.73,0.00058904,120]
[379131155,1755151999139,-400.0,0.00058904,120]
[379131156,1755151999149,-437.35,0.00058904,120]
[379131157,1755151999158,-400.0,0.00058904,120]
[379131158,1755151999168,-224.8133345,0.00058904,120]
[379131159,1755151999177,-1629.11,0.00058904,120]
[379131160,1755151999188,-661.99,0.00058904,120]
[379131161,1755151999198,-515.21,0.00058904,120]
[379131162,1755151999207,-400.0,0.00058904,120]
[379131163,1755151999217,-400.0,0.00058904,120]
[379131164,1755151999226,-1786.76,0.00058904,120]
[379131165,1755151999236,-1840.29,0.00058904,120]
[379131166,1755151999245,-400.0,0.00058904,120]
[379131167,1755151999255,-400.0,0.00058904,120]
[379131168,1755151999264,-2846.48,0.00058904,120]
[379131169,1755151999274,-400.0,0.00058904,120]
[379131170,1755151999284,-3003.6,0.00058904,120]
[379131171,1755151999294,-400.0,0.00058904,120]
[379131172,1755151999303,-445.62,0.00058904,120]
[379131173,1755151999314,-507.26,0.00058904,120]
[379131174,1755151999323,-404.16940756,0.00058904,120]
[379131175,1755151999333,-400.0,0.00058904,120]
[379131176,1755151999343,-400.0,0.00058904,120]
[379131177,1755151999352,-459.89,0.00058904,120]
[379131178,1755151999362,-1388.84,0.00058904,120]
[379131179,1755151999372,-1972.56,0.00058904,120]
[379131180,1755151999383,-1470.66,0.00058904,120]
[379131181,1755151999392,-400.0,0.00058904,120]
[379131182,1755151999402,-1279.9,0.00058904,120]
[379131183,1755151999412,-400.0,0.00058904,120]
[379131184,1755151999422,-400.0,0.00058904,120]
[379131185,1755151999432,-400.0,0.00058904,120]
[379131186,1755151999442,-1557.49,0.00058904,120]
[379131187,1755151999452,-4796.07,0.00058904,120]
[379131188,1755151999462,-400.0,0.00058904,120]
[379131189,1755151999471,-1397.98,0.00058904,120]
[379131190,1755151999480,-1255.71,0.00058904,120]
[379131191,1755151999490,-3562.17,0.00058904,120]
[379131192,1755151999500,-400.0,0.00058904,120]
[379131193,1755151999510,-594.96,0.00058904,120]
[379131194,1755151999520,-2231.09,0.00058904,120]
[379131195,1755151999530,-753.54,0.00058904,120]
[379131196,1755151999540,-411.57,0.00058904,120]
[379131197,1755151999549,-400.0,0.00058904,120]
[379131198,1755151999559,-400.0,0.00058904,120]
[379131199,1755151999570,-415.44225889,0.00058904,120]
[379131200,1755151999579,-2275.13,0.00058904,120]
[379131201,1755151999588,-400.0,0.00058904,120]
[379131202,1755151999598,-4179.34,0.00058904,120]
[379131203,1755151999608,-3602.81,0.00058904,120]
[379131204,1755151999617,-400.0,0.00058904,120]
[379131205,1755151999627,-697.24,0.00058904,120]
[379131206,1755151999636,-400.0,0.00058904,120]
[379131207,1755151999646,-1091.59,0.00058904,120]
[379131208,1755151999655,-1188.89,0.00058904,120]
[379131209,1755151999665,-400.0,0.00058904,120]
[379131210,1755151999674,-657.82,0.00058904,120]
[379131211,1755151999684,-1943.71,0.00058904,120]
[379131212,1755151999694,-400.0,0.00058904,120]
[379131213,1755151999704,-1947.43,0.00058904,120]
[379131214,1755151999714,-621.34,0.00058904,120]
[379131215,1755151999724,-400.0,0.00058904,120]
[379131216,1755151999734,-2885.05,0.00058904,120]
[379131217,1755151999743,-1136.53,0.00058904,120]
[379131218,1755151999752,-409.26,0.00058904,120]
[379131219,1755151999763,-400.0,0.00058904,120]
[379131220,1755151999772,-1523.92,0.00058904,120]
[379131221,1755151999782,-874.51,0.00058904,120]
[379131222,1755151999791,-525.55,0.00058904,120]
[379131223,1755151999800,-400.0,0.00058904,120]
[379131224,1755151999810,-400.0,0.00058904,120]
[379131225,1755151999820,-2634.74,0.00058904,120]
[379131226,1755151999834,-400.0,0.00058904,120]
[379131227,1755151999844,-400.0,0.00058904,120]
[379131228,1755151999857,-569.15,0.00058904,120]
[379131229,1755151999867,-526.01,0.00058904,120]
[379131230,1755151999877,-1435.39,0.00058904,120]
[379131231,1755151999887,-400.0,0.00058904,120]
[379131232,1755151999896,-400.0,0.00058904,120]
[379131233,1755151999906,-507.60779069,0.00058904,120]
[379131234,1755151999917,-400.0,0.00058904,120]
[379131235,1755151999926,-3145.12,0.00058904,120]
[379131236,1755151999937,-400.0,0.00058904,120]
[379131237,1755151999946,-400.0,0.00058904,120]
[379131238,1755151999957,-973.72,0.00058904,120]
[379131239,1755151999968,-400.0,0.00058904,120]
[379131240,1755151999977,-1535.26,0.00058904,120]
[379131241,1755151999986,-400.0,0.00058904,120]
[379131242,1755151999995,-502.53,0.00058904,120]
[379131243,1755152000006,-400.0,0.00058904,120]
[379131244,1755152000015,-1237.4,0.00058904,120]
[379131245,1755152000025,-400.0,0.00058904,120]
[379131246,1755152000034,-400.0,0.00058904,120]
[379131247,1755152000046,-994.56,0.00058904,120]
[379131248,1755152000056,-3930.5,0.00058904,120]
[379131249,1755152000065,-851.4,0.00058904,120]
[379131250,1755152000075,-1688.6,0.00058904,120]
[379131251,1755152000084,-417.86,0.00058904,120]
[379131252,1755152000094,-1138.14,0.00058904,120]
[379131253,1755152000105,-400.0,0.00058904,120]
[379131254,1755152000114,-400.0,0.00058904,120]
[379131255,1755152000123,-2306.91,0.00058904,120]
[379131256,1755152000132,-400.0,0.00058904,120]
[379131257,1755152000142,-1932.47,0.00058904,120]
[379131258,1755152000152,-1449.35,0.00058904,120]
[379131259,1755152000161,-400.0,0.00058904,120]
[379131260,1755152000171,-2898.61,0.00058904,120]
[379131261,1755152000181,-400.0,0.00058904,120]
[379131262,1755152000191,-424.36,0.00058904,120]
[379131263,1755152000200,-597.08,0.00058904,120]
[379131264,1755152000210,-977.15,0.00058904,120]
[379131265,1755152000219,-605.25,0.00058904,120]
[379131266,1755152000229,-645.84,0.00058904,120]
[379131267,1755152000238,-400.0,0.00058904,120]
[379131268,1755152000247,-640.09,0.00058904,120]
[379131269,1755152000256,-400.0,0.00058904,120]
[379131270,1755152000266,-1504.96,0.00058904,30]
[379131271,1755152000275,-2143.17,0.00058904,120]
[379131272,1755152000285,-4441.35,0.00058904,60]
[379131273,1755152000294,-400.0,0.00058904,120]
[379131274,1755152000303,-1063.89,0.00058904,120]
[379131275,1755152000313,-400.0,0.00058904,120]
[379131276,1755152000322,-3704.26,0.00058904,120]
[379131277,1755152000332,-749.81,0.00058904,120]
[379131278,1755152000342,-385.36084421,0.00058904,120]
[379131279,1755152000351,-400.0,0.00058904,120]
[379131280,1755152000360,-796.46,0.00058904,120]
[379131281,1755152000370,-680.22,0.00058904,120]
[379131282,1755152000379,-922.0,0.00058904,120]
[379131283,1755152000388,-2057.96,0.00058904,120]
[379131284,1755152000398,-1635.41,0.00058904,120]
[379131285,1755152000407,-400.0,0.00058904,120]
[379131286,1755152000416,-3741.78,0.00058904,120]
[379131287,1755152000426,-2448.92,0.00058904,120]
[379131288,1755152000437,-400.0,0.00058904,120]
[379131289,1755152000446,-400.0,0.00058904,120]
[379131290,1755152000455,-1764.54,0.00058904,120]
[379131291,1755152000465,-643.99,0.00058904,120]
[379131292,1755152000474,-773.35,0.00058904,120]
[379131293,1755152000483,-400.0,0.00058904,120]
[379131294,1755152000493,-400.0,0.00058904,120]
[379131295,1755152000502,-400.0,0.00058904,120]
[379131296,1755152000511,-400.0,0.00058904,120]
[379131297,1755152000521,-806.63,0.00058904,120]
[379131298,1755152000531,-3697.49,0.00058904,120]
[379131299,1755152000541,-400.0,0.00058904,120]
[379131300,1755152000557,-400.0,0.00058904,120]
[379131301,1755152000573,-400.0,0.00058904,120]
[379131302,1755152000585,-400.0,0.00058904,120]
[379131303,1755152000600,-2202.06,0.00058904,120]
[379131304,1755152000614,-2618.33,0.00058904,120]
[379131305,1755152000628,-400.0,0.00058904,120]
[379131306,1755152000643,-422.63,0.00058904,120]
[379131307,1755152000656,-1232.69,0.00058904,120]
[379131308,1755152000668,-400.0,0.00058904,120]
[379131309,1755152000683,-956.31,0.00058904,120]
[379131310,1755152000697,-787.12,0.00058904,120]
[379131311,1755152000712,-400.0,0.00058904,120]
[379131312,1755152000727,-946.92,0.00058904,120]
[379131313,1755152000742,-400.0,0.00058904,120]
[379131314,1755152000758,-367.63,0.00058904,120]
[379131315,1755152000772,-2908.77,0.00058904,120]
[379131316,1755152000786,-698.51,0.00058904,120]
[379131317,1755152000800,-414.04,0.00058904,120]
[379131318,1755152000815,-3094.08,0.00058904,120]
[379131319,1755152000828,-1082.85,0.00058904,120]
[379131320,1755152000841,-1462.02,0.00058904,120]
[379131321,1755152000852,-1237.68,0.00058904,120]
[379131322,1755152000865,-1768.49,0.00058904,120]
[379131323,1755152000881,-400.0,0.00058904,120]
[379131324,1755152000892,-1704.18,0.00058904,120]
[379131325,1755152000903,-400.0,0.00058904,120]
[379131326,1755152000917,-1596.72,0.00058904,120]
[379131327,1755152000930,-970.53,0.00058904,120]
[379131328,1755152000943,-1772.64,0.00058904,120]
[379131329,1755152000957,-2462.23,0.00058904,120]
[379131330,1755152000970,-1830.0,0.00058904,120]
[379131331,1755152000983,-2324.76,0.00058904,120]
[379131332,1755152000996,-400.0,0.00058904,120]
[379131333,1755152001008,-1017.9,0.00058904,120]
[379131334,1755152001021,-400.0,0.00058904,120]
[379131335,1755152001033,-1510.97,0.00058904,120]
[379131336,1755152001048,-400.0,0.00058904,120]
[379131337,1755152001060,-400.0,0.00058904,120]
[379131338,1755152001073,-2038.31,0.00058904,120]
[379131339,1755152001086,-713.52,0.00058904,120]
[379131340,1755152001099,-755.88,0.00058904,120]
[379131341,1755152001112,-1143.04,0.00058904,120]
[379131342,1755152001125,-718.87,0.00058904,120]
[379131343,1755152001138,-556.99,0.00058904,120]
[379131344,1755152001153,-400.0,0.00058904,120]
[379131345,1755152001164,-400.0,0.00058904,120]
[379131346,1755152001176,-2571.66,0.00058904,120]
[379131347,1755152001193,-400.0,0.00058904,120]
[379131348,1755152001205,-400.0,0.00058904,120]
[379131349,1755152001217,-1807.99,0.00058904,120]
[379131350,1755152001229,-400.0,0.00058904,120]
[379131351,1755152001241,-176.85789116,0.00058904,120]
[379131352,1755152001252,-400.0,0.00058904,120]
[379131353,1755152001265,-533.67,0.00058904,120]
[379131354,1755152001277,-400.0,0.00058904,120]
[379131355,1755152001290,-407.33,0.00058904,120]
[379131356,1755152001304,-1087.08,0.00058904,120]
[379131357,1755152001317,-2899.38,0.00058904,120]
[379131358,1755152001330,-400.0,0.00058904,120]
[379131359,1755152001342,-400.0,0.00058904,120]
[379131360,1755152001355,-400.0,0.00058904,120]
[379131361,1755152001368,-924.51,0.00058904,120]
[379131362,1755152001380,-400.0,0.00058904,120]
[379131363,1755152001393,-400.0,0.00058904,120]
[379131364,1755152001405,-3096.61,0.00058904,120]
[379131365,1755152001417,-400.0,0.00058904,120]
[379131366,1755152001431,-1363.2,0.00058904,120]
[379131367,1755152001443,-400.0,0.00058904,120]
[379131368,1755152001455,-1524.73,0.00058904,120]
[379131369,1755152001467,-400.0,0.00058904,120]
[379131370,1755152001479,-2258.0,0.00058904,120]
[379131371,1755152001491,-400.0,0.00058904,120]
[379131372,1755152001504,-982.03,0.00058904,120]